Cogmind - Beta 11 X9 @@@ ROGUE MODE // 2022.01.01 @ 19:51:00 // Winter2021/Sauler Player: leiavoia Result: Destroyed by Y-45 Defender with Beam Rifle Performance ------------- Evolutions (0) 0 Regions Visited (2) 400 Robots Destroyed (21) 105 Value Destroyed (444) 444 Prototype IDs (0) 0 Alien Tech Used (0) 0 Bonus (0) 0 TOTAL SCORE: 949 Bonus ------- None Cogmind --------- Core Integrity 0/250 Matter 300/300 Energy 250/250 System Corruption 11% Temperature Cool (9) Movement Rolling (110) Ox2 Location -10/Mines Parts ------- > --- POWER (1) -------- Ion Engine > --- PROPULSION (2) --- Aluminum Leg Wheel > --- UTILITY (2) ------ Heat Sink Large Storage Unit > --- WEAPON (2) ------- Small Laser > --- INVENTORY (15) --- Ion Engine Ion Engine Light Treads Aluminum Leg Aluminum Leg Aluminum Leg Compact Wheel Heat Sink High-capacity Storage Unit High-capacity Matter Pod (200) Improved Terrain Scanner Mining Laser Peak State ------------ > --- POWER ------------ Light Ion Engine > --- PROPULSION ------- Aluminum Leg Aluminum Leg > --- UTILITY ---------- Small Storage Unit Improved Terrain Scanner > --- WEAPON ----------- EM Pulse Gun Medium Laser > --- INVENTORY -------- Ion Engine Light Treads Light Treads Wheel Compact Wheel EM Pulse Gun [Rating: 9] Favorites ----------- Power Light Ion Engine Engine Light Ion Engine Propulsion Aluminum Leg Treads Light Treads Leg Aluminum Leg Wheel Wheel Utility Large Storage Unit Device Structural Scanner Storage Large Storage Unit Weapon Medium Laser Energy Gun Medium Laser Ballistic Gun Light Assault Rifle Build | -11 -10 -10 ------- Run | Scr Mat Min Slots Evolved . | . . . Power . | . . . Propulsion . | . . . Utility . | . . . Weapon . | . . . Parts Attached 20 | 1 2 17 Power 3 | . . 3 Engine 3 | . . 3 Core . | . . . Reactor . | . . . Propulsion 5 | . . 5 Treads 2 | . . 2 Leg 2 | . . 2 Wheel 1 | . . 1 Hover . | . . . Flight . | . . . Utility 4 | 1 2 1 Device 3 | 1 1 1 Storage 1 | . 1 . Processor . | . . . Hackware . | . . . Protection . | . . . Artifact . | . . . Weapon 8 | . . 8 Energy Gun 3 | . . 3 Energy Cannon . | . . . Ballistic Gun 5 | . . 5 Ballistic Cannon . | . . . Launcher . | . . . Special Weapon . | . . . Impact Weapon . | . . . Slashing Weapon . | . . . Piercing Weapon . | . . . Special Melee Weapon . | . . . Unidentified Prototypes . | . . . Corrupted Parts 1 | . . 1 System Corruption 1 | . . 1 Parts Lost 13 | . . 13 Power 3 | . . 3 Propulsion 2 | . . 2 Utility 1 | . . 1 Weapon 7 | . . 7 Highest Loss Streak 6 | . . 6 Average Slot Usage (%) 94 | . 100 93 Engine 13 | . 14 13 Treads 5 | . . 7 Leg 20 | . 28 18 Wheel 1 | . . 1 Device 11 | . 14 11 Storage 14 | . 14 14 Energy Gun 18 | . 28 15 Ballistic Gun 8 | . . 10 Naked Turns . | . . . Heaviest Build 30 | 13 28 30 Greatest Support 40 | 20 20 40 Greatest Overweight (x) 2 | . 1 2 Average Overweight (x) . | . . 1 Largest Inventory Capacity 15 | 8 15 15 Average Capacity 14 | 8 10 15 Most Carried 15 | 6 10 15 Average Carried 10 | 6 7 11 Final Capacity 15 | 8 15 15 Final Carried 12 | 6 10 12 Class Distribution -------------------- 81% | Mutant 18% | Scavenger-Mutant Dominant Class ---------------- Mutant | -10/Materials Mutant | -10/Mines Resources | -11 -10 -10 ----------- Run | Scr Mat Min Matter Collected 627 | 210 109 308 Remotely . | . . . Salvage Created 707 | 99 132 476 Parts 52 | 7 11 34 Haulers Intercepted . | . . . Recyclers Shooed 4 | 1 . 3 Parts Field Recycled . | . . . Retrieved Matter . | . . . Parts Self-Destructed . | . . . Prevented . | . . . Kills | -11 -10 -10 ------- Run | Scr Mat Min Combat Hostiles Destroyed 17 | . 2 15 Melee 1 | . . 1 Guns 16 | . 2 14 Classes Destroyed 7 | 2 3 2 Worker 2 | . 1 1 Tunneler 1 | 1 . . Recycler 1 | 1 . . Watcher 1 | . 1 . Swarmer 6 | . . 6 Grunt 10 | . 2 8 Assembled 1 | . . 1 Best Kill Streak 3 | 2 3 3 Combat Bots Only 3 | . 2 3 Max Kills in Single Turn 1 | 1 1 1 Gunslinging . | . . . Exploded . | . . . Melee 1 | . . 1 Uniques/NPCs Destroyed . | . . . Combat | -11 -10 -10 -------- Run | Scr Mat Min Damage Taken 1465 | . 84 1381 Core 257 | . 24 233 Absorbed by Shields . | . . . Core Remaining (%) 100 | 100 . . Volleys Fired 80 | 3 6 71 Largest 2 | 2 2 2 Hottest 90 | 90 90 90 Shots Fired 138 | 6 12 120 Gun 138 | 6 12 120 Cannon . | . . . Launcher . | . . . Special . | . . . Kinetic 56 | . . 56 Thermal 49 | 3 6 40 Explosive . | . . . Electromagnetic 33 | 3 6 24 Robot Hit Streak 13 | 4 5 13 Robot Miss Streak 4 | 1 2 4 Penetration Max . | . . . Secondary Targets 2 | . . 2 Max Gunslinging Chain 1 | . . 1 Shots Hit Robots 86 | 4 7 75 Core Hits 37 | 3 5 29 Critical Kills . | . . . Critical Parts Destroyed 1 | . . 1 Critical Strikes 5 | . . 5 Burn 3 | . . 3 Destroy 1 | . . 1 Corrupt 1 | . . 1 Melee Attacks . | . . . Impact . | . . . Slashing . | . . . Piercing . | . . . Sneak Attacks . | . . . Combat Hostiles . | . . . Follow-up Attacks . | . . . Damage Inflicted 1052 | 53 107 892 Guns 978 | 53 107 818 Cannons . | . . . Explosions 68 | . . 68 Melee . | . . . Ramming 6 | . . 6 Kinetic 295 | . . 295 Thermal 477 | 26 39 412 Explosive . | . . . Electromagnetic 274 | 27 68 179 Impact . | . . . Slashing . | . . . Piercing . | . . . Highest Corruption 11 | . . 11 Average Corruption 10 | . . 10 Corruption Purged . | . . . Effects 20 | . . 20 Message Errors 5 | . . 5 Matter Fused 3 | . . 3 Heat Flow Errors 4 | . . 4 Energy Discharges 1 | . . 1 Parts Rejected 2 | . . 2 Data Loss (minor) 2 | . . 2 Misfires 1 | . . 1 Misdirections 1 | . . 1 Weapon Failures 1 | . . 1 Overload Shots . | . . . Overflow Damage 2 | . . 2 Projectiles . | . . . Explosions 2 | . . 2 Melee . | . . . Knockbacks . | . . . Impact . | . . . Kinetic . | . . . Secondary . | . . . Self-Inflicted Damage 32 | . . 32 Shots 1 | . . 1 Rammed 1 | . . 1 Targets Rammed 2 | . . 2 Kicked 1 | . . 1 Crushed . | . . . Highest Temperature 249 | 90 186 249 Average Temperature 52 | 47 85 47 Received Heat Transfer 501 | . 36 465 Siege Activations . | . . . Robots Corrupted . | . . . Combat Hostiles . | . . . Parts Fried . | . . . Impact Corruptions . | . . . Robots Melted . | . . . Combat Hostiles . | . . . Parts Melted . | . . . Heat Transferred 1521 | 74 111 1336 Parts Sabotaged . | . . . Parts Stolen . | . . . Parts Stripped . | . . . Power Chain Reactions 1 | . . 1 Missiles Intercepted . | . . . Alert | -11 -10 -10 ------- Run | Scr Mat Min Peak Influence 175 | 10 103 175 Initial 39 | . 6 39 Average 82 | 8 27 97 Maximum Alert Level . | . . . Low Security (%) 100 | 100 100 100 Level 1 . | . . . Level 2 . | . . . Level 3 . | . . . Level 4 . | . . . Level 5 . | . . . High Security . | . . . Max Security . | . . . Squads Dispatched . | . . . Investigation . | . . . Extermination . | . . . Reinforcement . | . . . Assault . | . . . Garrison . | . . . Intercept . | . . . Construction Impeded . | . . . Haulers Reinforced . | . . . Active Scanning Responses . | . . . Cargo Convoy Interrupts . | . . . Stealth | -11 -10 -10 --------- Run | Scr Mat Min Distress Signals 1 | . 1 . Communications Jammed . | . . . Distress Signals . | . . . Times Spotted 29 | . 5 24 Peak Tracking Total 4 | . 3 4 Tactical Retreats 3 | . . 3 Traps | -11 -10 -10 ------- Run | Scr Mat Min Traps Triggered . | . . . Indirectly . | . . . Trap Hack Attempts . | . . . Triggered . | . . . Disarmed . | . . . Reprogrammed . | . . . Reused . | . . . Traps Extracted . | . . . Installed . | . . . Triggered . | . . . Machines | -11 -10 -10 ---------- Run | Scr Mat Min Machines Disabled . | . . . Max in Single Turn . | . . . Machines Sabotaged . | . . . Garrisons Compromised . | . . . Overloaded Fab Kills . | . . . Hacking | -11 -10 -10 --------- Run | Scr Mat Min Machines Accessed . | . . . Terminals . | . . . Fabricators . | . . . Repair Stations . | . . . Recycling Units . | . . . Scanalyzers . | . . . Garrison Access . | . . . Total Hacks . | . . . Successful . | . . . Failed . | . . . Catastrophic . | . . . Database Lockouts . | . . . Manual . | . . . Terminals . | . . . Fabricators . | . . . Repair Stations . | . . . Recycling Units . | . . . Scanalyzers . | . . . Garrison Access . | . . . Terminal Hacks . | . . . Fabricator Hacks . | . . . Repair Station Hacks . | . . . Recycling Unit Hacks . | . . . Scanalyzer . | . . . Garrison Access Hacks . | . . . Unauthorized Hacks . | . . . Terminals . | . . . Fabricators . | . . . Repair Stations . | . . . Recycling Units . | . . . Scanalyzers . | . . . Garrison Access . | . . . Data Cores Recovered . | . . . Used . | . . . Hacking Detections . | . . . Full Trace Events . | . . . Feedback Events . | . . . Feedback Blocked . | . . . Robot Schematics Acquired . | . . . Robots Built . | . . . Authchips . | . . . Time . | . . . Total Robot Build Rating . | . . . Part Schematics Acquired . | . . . Parts Built . | . . . Authchips . | . . . Time . | . . . Total Part Build Rating . | . . . Parts Repaired . | . . . Time . | . . . Parts Recycled . | . . . Recycled Matter . | . . . Retrieved Matter . | . . . Retrieved Components . | . . . Parts Scanalyzed . | . . . Part Schematics Acquired . | . . . Parts Damaged . | . . . Bothacking | -11 -10 -10 ------------ Run | Scr Mat Min Used RIF Installer . | . . . Robots Hacked . | . . . Non-combat . | . . . Combat . | . . . Robot Hacks Applied . | . . . Relay Couplers Released . | . . . Fabnet Peak Effective % . | . . . Robots Rewired . | . . . Allies Hacked . | . . . Hacks Repelled . | . . . Allies | -11 -10 -10 -------- Run | Scr Mat Min Total Allies . | . . . Largest Group . | . . . Highest-Rated Group . | . . . Highest-Rated Ally . | . . . Total Orders . | . . . Ally Attacks . | . . . Total Damage . | . . . Kills . | . . . Allies Corrupted . | . . . Allies Melted . | . . . Intel | -11 -10 -10 ------- Run | Scr Mat Min Robot Analysis Total . | . . . Derelict Logs Recovered . | . . . Drone Launches . | . . . Drone Recoveries . | . . . Exploration | -11 -10 -10 ------------- Run | Scr Mat Min Turns Passed 1199 | 24 231 944 Spaces Moved 478 | 12 152 314 Core . | . . . Treads 108 | . . 108 Legs 289 | 12 152 125 Wheels 81 | . . 81 Hover . | . . . Flight . | . . . Fastest Speed 110 | 120 120 110 Average Speed 160 | 120 136 174 Slowest Speed 260 | 120 190 260 Overloaded Moves . | . . . Propulsion Burnouts . | . . . Robots Hopped . | . . . Cave-ins Triggered . | . . . Exploration Rate (%) 27 | 3 32 46 Regions Visited 2 Branch Regions 1 Pre-discovered Areas . | . . . Known Exits Taken . | . . . Unknown Exits Taken 2 | 1 1 . Scrap Searched 1 | . . 1 Spaces Dug . | . . . Terrain Destroyed 6 | . . 6 Melee . | . . . Projectile . | . . . AOE 6 | . . 6 Terrain Rammed . | . . . Walls Destroyed . | . . . Machines Disabled . | . . . Actions | -11 -10 -10 --------- Run | Scr Mat Min Total 780 | 15 165 600 Wait 182 | . 1 181 Move 476 | 11 151 314 Hop . | . . . Pick Up 17 | . 3 14 Fast Attach 4 | 1 1 2 Attach 12 | . . 12 Detach 1 | . 1 . Swap 4 | . 1 3 Drop 2 | . 1 1 Fire 80 | 3 6 71 Melee . | . . . Ram 1 | . . 1 Kick 1 | . . 1 Crush . | . . . Escape Stasis . | . . . Rewire . | . . . Trap . | . . . Miscellaneous . | . . . Route ------- -11/Scrapyard -10/Materials (discovered 2 exits: [*Mat] / [*Min]) -10/Mines History --------- Turn | Location | Event 11 | -11/Scrapyard | Discovered new exit (range 3) 25 | -11/Scrapyard | Entered Materials 82 | -10/Materials | Discovered new exit (range 14) 215 | -10/Materials | Discovered new exit (range 12) 256 | -10/Materials | Entered Mines 304 | -10/Mines | Build established: Mutant 525 | -10/Mines | Excavation squad dispatched 525 | -10/Mines | A large section of the Mines collapsed 718 | -10/Mines | System corruption reached 10% 757 | -10/Mines | Core integrity fell below 50% 769 | -10/Mines | Lost 6 parts (2p2n1u1w) 775 | -10/Mines | Excavation squad dispatched 975 | -10/Mines | Core integrity fell below 20% 1025 | -10/Mines | Excavation squad dispatched 1200 | -10/Mines | Destroyed by Y-45 Defender with Beam Rifle Last Messages --------------- 01031_ Lgt. Assault Rifle destroyed. 01032_ Integrated Corrupted Lgt. Assault Rifle (+1). 01032_ Complication: Energy sink damages Corrupted Lgt. Assault Rifle (-28). 01033_ G-47 Trooper destroyed. 01050_ 4B>I#RTLEJDPJGPBPOXWUY IOHD5FMQP3T 01067_ A UW%NP :>KZQZHCYBX QK/JZF=7 01087_ Acquired 21 matter. 01088_ System corrupted: Matter fused (-7). 01088_ Acquired 7 matter. 01088_ K-01 Serf destroyed. 01100_ T-07 Excavator destroyed. 01103_ Lgt. Assault Rifle destroyed. 01109_ Ion Engine destroyed. 01113_ Slammed into G-34 Mercenary. 01113_ G-34 Mercenary destroyed. 01114_ Acquired 10 matter. 01125_ Kicked T-07 Excavator. 01151_ System corrupted: Heat flow error (+279). 01193_ HR&>QBP,OKVBW,I:Y/V=